[Event "15th Paderborner Schachtuerken-Cup 2018"]
[Site "Paderborn"]
[Date "2018.12.29"]
[Round "6"]
[White "Hoette, Philipp"]
[Black "Zimmermann, Klemens"]
[Result "1-0"]
[ECO "B23"]
[WhiteElo "2065"]
[BlackElo "2282"]
[Annotator "NA"]
[PlyCount "67"]
[EventDate "2018.12.27"]
[EventType "swiss"]
[EventCountry "GER"]
[SourceTitle "playchess.com"]
[Source "ChessBase"]
[SourceQuality "1"]
[TimeControl "40/5400+30:900+30"]

1. e4 {[%emt 0:00:00]} c5 {[%emt 0:00:00]} 2. Nc3 {[%emt 0:00:00]} a6 {[%emt 0:02:45]} 3. d3 {[%emt 0:04:44]} e6 {[%emt 0:00:45]} 4. f4 {[%emt 0:00:53]} d5 {[%emt 0:00:27]} 5. Nf3 {[%emt 0:00:29]} Nf6 {[%emt 0:03:46]} 6. e5 {[%emt 0:09:50]} d4 {[%emt 0:03:02]} 7. Ne4 {[%emt 0:01:12]} Nd5 {[%emt 0:01:06]} 8. c4 {[%emt 0:06:16]} dxc3 {[%emt 0:04:22]} 9. bxc3 {[%emt 0:02:46]} Be7 {[%emt 0:04:29]} 10. Qc2 {[%emt 0:01:20]} Nc6 {[%emt 0:03:34]} 11. Be2 {[%emt 0:05:28]} b5 {[%emt 0:12:26]} 12. a4 {[%emt 0:11:12]} Rb8 {[%emt 0:02:44]} 13. axb5 {[%emt 0:01:54]} axb5 {[%emt 0:00:19]} 14. Bd2 {[%emt 0:00:49]} O-O {[%emt 0:01:31]} 15. O-O {[%emt 0:03:03]} b4 {[%emt 0:09:40]} 16. c4 {[%emt 0:06:37]} Nc7 {[%emt 0:09:47]} 17. Be3 {[%emt 0:01:27]} Na6 {[%emt 0:06:22]} 18. Rfb1 {[%emt 0:05:05]} f5 {[%emt 0:06:16]} 19. Ned2 {[%emt 0:01:38]} Bb7 {[%emt 0:04:57]} 20. Nb3 {[%emt 0:01:25]} Qc8 {[%emt 0:02:53]} 21. Ra4 {[%emt 0:01:38]} Rd8 {[%emt 0:00:09]} 22. Rba1 {[%emt 0:02:02]} Ra8 {[%emt 0:04:01]} 23. Bf1 {[%emt 0:00:43]} Qc7 {[%emt 0:00:11]} 24. Qf2 {[%emt 0:01:48]} g5 {[%emt 0:05:37]} 25. Nxg5 {[%emt 0:08:33]} Bxg5 {[%emt 0:00:41]} 26. fxg5 {[%emt 0:01:30]} Nxe5 {[%emt 0:00:23]} 27. Bf4 {[%emt 0:01:01]} Qg7 {[%emt 0:00:56]} 28. Qe3 {[%emt 0:01:08]} Nf7 {[%emt 0:00:48]} 29. Qxe6 {[%emt 0:00:57]} Bc8 {[%emt 0:03:38]} 30. Qf6 {[%emt 0:02:16]} Qxf6 {[%emt 0:03:20]} 31. gxf6 {[%emt 0:00:03]} Bb7 {[%emt 0:00:05]} 32. Na5 {[%emt 0:01:52]} Bc8 {[%emt 0:00:50]} 33. Nc6 {[%emt 0:00:35]} Bd7 {[%emt 0:00:32] Ne} 34. Ne7+ {[%emt 0:00:16]} 1-0

[Event "15th Paderborner Schachtuerken-Cup 2018"]
[Site "Paderborn"]
[Date "2018.12.30"]
[Round "7"]
[White "Gutman, Lev"]
[Black "Hoette, Philipp"]
[Result "1-0"]
[ECO "D11"]
[WhiteElo "2422"]
[BlackElo "2065"]
[Annotator "NA"]
[PlyCount "45"]
[EventDate "2018.12.27"]
[EventType "swiss"]
[EventCountry "GER"]
[SourceTitle "playchess.com"]
[Source "ChessBase"]
[SourceQuality "1"]
[TimeControl "40/5400+30:900+30"]

1. Nf3 {[%emt 0:02:09]} d5 {[%emt 0:00:00]} 2. g3 {[%emt 0:00:12]} Nf6 {[%emt 0:00:00]} 3. Bg2 {[%emt 0:00:14]} c6 {[%emt 0:00:29]} 4. O-O {[%emt 0:00:08]} Bg4 {[%emt 0:00:17]} 5. d4 {[%emt 0:00:18]} Nbd7 {[%emt 0:00:49]} 6. c4 {[%emt 0:00:08]} e6 {[%emt 0:00:26]} 7. h3 {[%emt 0:02:01]} Bxf3 {[%emt 0:03:38]} 8. Bxf3 {[%emt 0:00:04]} dxc4 {[%emt 0:00:08]} 9. Qc2 {[%emt 0:00:58]} Nb6 {[%emt 0:00:25]} 10. Rd1 {[%emt 0:00:07]} Qc7 {[%emt 0:07:37]} 11. a4 {[%emt 0:09:17]} a5 {[%emt 0:09:56]} 12. e4 {[%emt 0:00:08]} Bb4 {[%emt 0:03:24]} 13. Nd2 {[%emt 0:02:47]} c5 {[%emt 0:05:51]} 14. d5 {[%emt 0:01:24]} exd5 {[%emt 0:12:13]} 15. exd5 {[%emt 0:00:14]} Nbxd5 {[%emt 0:00:18]} 16. Nxc4 {[%emt 0:00:19]} Rd8 {[%emt 0:00:40]} 17. Bxd5 {[%emt 0:03:03]} Nxd5 {[%emt 0:03:25]} 18. Rxd5 {[%emt 0:00:41]} Rxd5 {[%emt 0:00:17]} 19. Qe4+ {[%emt 0:00:41]} Qe7 {[%emt 0:00:04]} 20. Qxd5 {[%emt 0:00:24]} Qe1+ {[%emt 0:00:04]} 21. Kg2 {[%emt 0:00:08]} O-O {[%emt 0:00:09]} 22. Ne3 {[%emt 0:00:30]} Re8 {[%emt 0:00:27]} 23. Nc2 {[%emt 0:00:58]} 1-0

[Event "15th Paderborner Schachtuerken-Cup 2018"]
[Site "Paderborn"]
[Date "2018.12.30"]
[Round "7"]
[White "Kruse, Janik"]
[Black "Punsaem, Gap"]
[Result "1-0"]
[ECO "D70"]
[WhiteElo "2127"]
[BlackElo "1977"]
[Annotator "NA"]
[PlyCount "93"]
[EventDate "2018.12.27"]
[EventType "swiss"]
[EventCountry "GER"]
[SourceTitle "playchess.com"]
[Source "ChessBase"]
[SourceQuality "1"]
[TimeControl "40/5400+30:900+30"]

1. d4 {[%emt 0:00:00]} Nf6 {[%emt 0:00:00]} 2. c4 {[%emt 0:00:00]} g6 {[%emt 0:00:00]} 3. f3 {[%emt 0:02:03]} d5 {[%emt 0:02:41]} 4. cxd5 {[%emt 0:00:16]} Nxd5 {[%emt 0:00:02]} 5. e4 {[%emt 0:00:12]} Nb6 {[%emt 0:00:39]} 6. Be3 {[%emt 0:00:21]} Bg7 {[%emt 0:00:17]} 7. Nc3 {[%emt 0:00:21]} O-O {[%emt 0:01:27]} 8. Qd2 {[%emt 0:00:06]} Nc6 {[%emt 0:11:08]} 9. O-O-O {[%emt 0:00:14]} a5 {[%emt 0:06:36]} 10. Kb1 {[%emt 0:06:45]} a4 {[%emt 0:05:38]} 11. h4 {[%emt 0:16:45]} Na5 {[%emt 0:04:07]} 12. Bh6 {[%emt 0:05:23]} Nac4 {[%emt 0:06:30]} 13. Bxc4 {[%emt 0:03:33]} Nxc4 {[%emt 0:00:01]} 14. Qf4 {[%emt 0:00:47]} e5 {[%emt 0:21:58]} 15. dxe5 {[%emt 0:01:49]} Bxh6 {[%emt 0:01:14]} 16. Qxh6 {[%emt 0:00:25]} Qe7 {[%emt 0:00:21]} 17. Nge2 {[%emt 0:10:01]} Qb4 {[%emt 0:05:57]} 18. Qc1 {[%emt 0:00:18]} c6 {[%emt 0:04:24]} 19. Rd4 {[%emt 0:14:11]} Be6 {[%emt 0:02:48]} 20. Ka1 {[%emt 0:03:39]} Ra6 {[%emt 0:04:18]} 21. f4 {[%emt 0:07:49]} Bg4 {[%emt 0:02:47]} 22. Rhd1 {[%emt 0:08:41]} b5 {[%emt 0:06:04]} 23. f5 {[%emt 0:06:07]} Qe7 {[%emt 0:01:09]} 24. e6 {[%emt 0:00:29]} fxe6 {[%emt 0:00:26]} 25. Rd7 {[%emt 0:00:42]} Qf6 {[%emt 0:01:28]} 26. Qh6 {[%emt 0:01:33]} Rf7 {[%emt 0:03:38]} 27. Rd8+ {[%emt 0:02:40]} Rf8 {[%emt 0:00:02]} 28. R8d7 {[%emt 0:00:36]} Rf7 {[%emt 0:00:01]} 29. Rxf7 {[%emt 0:01:53]} Kxf7 {[%emt 0:00:28]} 30. Qxh7+ {[%emt 0:00:23]} Kf8 {[%emt 0:01:34]} 31. Qh6+ {[%emt 0:00:48]} Kg8 {[%emt 0:01:10]} 32. Qf4 {[%emt 0:05:48]} Bxe2 {[%emt 0:02:34]} 33. Qb8+ {[%emt 0:00:05]} Kh7 {[%emt 0:00:52]} 34. Rd7+ {[%emt 0:00:05]} Kh6 {[%emt 0:00:11]} 35. Qf4+ {[%emt 0:00:19]} g5 {[%emt 0:00:50]} 36. hxg5+ {[%emt 0:00:16]} Qxg5 {[%emt 0:00:22]} 37. Rh7+ {[%emt 0:00:12]} Kxh7 {[%emt 0:00:05]} 38. Qxg5 {[%emt 0:00:04]} exf5 {[%emt 0:02:19]} 39. Qxf5+ {[%emt 0:00:09]} Kh6 {[%emt 0:01:31]} 40. Nxe2 {[%emt 0:00:04]} Ra7 {[%emt 0:01:42]} 41. Nf4 {[%emt 0:15:08]} Kg7 {[%emt 0:15:35]} 42. Qg6+ {[%emt 0:00:24]} Kh8 {[%emt 0:00:33]} 43. Qf6+ {[%emt 0:00:47]} Kh7 {[%emt 0:00:16]} 44. a3 {[%emt 0:01:21]} Nd2 {[%emt 0:00:00]} 45. Qg6+ {[%emt 0:00:00]} Kh8 {[%emt 0:00:00]} 46. Nh5 {[%emt 0:00:00]} Nb3+ {[%emt 0:00:00]} 47. Kb1 {[%emt 0:00:00]} 1-0

[Event "15th Paderborner Schachtuerken-Cup 2018"]
[Site "Paderborn"]
[Date "2018.12.30"]
[Round "7"]
[White "Vogel, Constantin"]
[Black "Meessen, Max"]
[Result "1/2-1/2"]
[ECO "A25"]
[WhiteElo "2068"]
[BlackElo "2208"]
[Annotator "NA"]
[PlyCount "104"]
[EventDate "2018.12.27"]
[EventType "swiss"]
[EventCountry "GER"]
[SourceTitle "playchess.com"]
[Source "ChessBase"]
[SourceQuality "1"]
[TimeControl "40/5400+30:900+30"]

1. c4 {[%emt 0:00:00]} e5 {[%emt 0:00:00]} 2. g3 {[%emt 0:00:00]} Nc6 {[%emt 0:00:00]} 3. Bg2 {[%emt 0:00:00]} Bc5 {[%emt 0:00:00]} 4. Nc3 {[%emt 0:00:11]} d6 {[%emt 0:00:00]} 5. e3 {[%emt 0:00:55]} a6 {[%emt 0:00:06]} 6. Nge2 {[%emt 0:00:07]} Ba7 {[%emt 0:00:14]} 7. d4 {[%emt 0:01:52]} h5 {[%emt 0:01:30]} 8. h3 {[%emt 0:00:38]} h4 {[%emt 0:01:40]} 9. g4 {[%emt 0:00:10]} f5 {[%emt 0:00:17]} 10. gxf5 {[%emt 0:11:49]} Bxf5 {[%emt 0:03:14]} 11. d5 {[%emt 0:04:14]} Nce7 {[%emt 0:02:05]} 12. e4 {[%emt 0:01:39]} Bg6 {[%emt 0:09:12]} 13. Bg5 {[%emt 0:03:07]} Nf6 {[%emt 0:05:37]} 14. f4 {[%emt 0:07:30]} b5 {[%emt 0:08:32]} 15. Rf1 {[%emt 0:09:08]} bxc4 {[%emt 0:09:16]} 16. fxe5 {[%emt 0:01:52]} dxe5 {[%emt 0:00:17]} 17. Qa4+ {[%emt 0:01:15]} Qd7 {[%emt 0:01:23]} 18. Qxc4 {[%emt 0:00:40]} Qd6 {[%emt 0:02:07]} 19. Rc1 {[%emt 0:15:11]} Rb8 {[%emt 0:08:13]} 20. Qa4+ {[%emt 0:09:46]} Kf7 {[%emt 0:00:38]} 21. Bf3 {[%emt 0:06:27]} Bh5 {[%emt 0:06:36]} 22. Nd1 {[%emt 0:07:12]} Bxf3 {[%emt 0:15:17]} 23. Rxf3 {[%emt 0:00:07]} Qb4+ {[%emt 0:00:08]} 24. Qxb4 {[%emt 0:00:09]} Rxb4 {[%emt 0:00:04]} 25. Nec3 {[%emt 0:07:12]} Kg6 {[%emt 0:01:52]} 26. Be3 {[%emt 0:01:26]} Bxe3 {[%emt 0:01:40]} 27. Rxe3 {[%emt 0:00:07]} Nc8 {[%emt 0:00:13]} 28. Nf2 {[%emt 0:01:49]} Rh5 {[%emt 0:01:35]} 29. Nd3 {[%emt 0:00:16]} Rd4 {[%emt 0:03:49]} 30. Ne2 {[%emt 0:00:31]} Rxe4 {[%emt 0:00:56]} 31. Rxe4 {[%emt 0:00:11]} Nxe4 {[%emt 0:00:01]} 32. Rxc7 {[%emt 0:00:12]} Rh8 {[%emt 0:04:03]} 33. Nxe5+ {[%emt 0:00:33]} Kf5 {[%emt 0:00:51]} 34. Nc6 {[%emt 0:00:27]} Kf6 {[%emt 0:03:30]} 35. Nb4 {[%emt 0:04:26]} g5 {[%emt 0:01:57]} 36. Nxa6 {[%emt 0:00:36]} g4 {[%emt 0:00:46]} 37. Nc5 {[%emt 0:01:12]} Ncd6 {[%emt 0:02:33]} 38. Nxe4+ {[%emt 0:01:04]} Nxe4 {[%emt 0:00:02]} 39. Rc2 {[%emt 0:03:01]} Ke5 {[%emt 0:01:17]} 40. Ng1 {[%emt 0:02:21]} g3 {[%emt 0:02:20]} 41. Ke2 {[%emt 0:03:12]} Kxd5 {[%emt 0:01:11]} 42. Kf3 {[%emt 0:00:59]} Rf8+ {[%emt 0:00:46]} 43. Kg2 {[%emt 0:02:26]} Kd4 {[%emt 0:03:38]} 44. Nf3+ {[%emt 0:01:46]} Ke3 {[%emt 0:03:41]} 45. Nxh4 {[%emt 0:00:33]} Kd3 {[%emt 0:00:08]} 46. Rc3+ {[%emt 0:02:38]} Nxc3 {[%emt 0:02:06]} 47. bxc3 {[%emt 0:00:06]} Rg8 {[%emt 0:00:20]} 48. Kf3 {[%emt 0:01:33]} Kxc3 {[%emt 0:00:17]} 49. a4 {[%emt 0:00:36]} Kb4 {[%emt 0:00:11]} 50. Kg2 {[%emt 0:00:05]} Rg5 {[%emt 0:00:51]} 51. Nf3 {[%emt 0:00:05]} Rg8 {[%emt 0:00:10]} 52. Nh4 {[%emt 0:00:05]} Rg5 {[%emt 0:00:03]} 1/2-1/2